bitfinex/quotes_BTCUSD_20241203
["timestamp","ask_amount","ask_price","bid_price","bid_amount"]
[1733251107204,0.01174001,95626.0,95620.0,0.0008634]
[1733251107425,0.01174001,95626.0,95620.0,0.0238634]
[1733251107633,0.01174001,95626.0,95620.0,0.02503968]
[1733251108060,0.209141,95629.0,95620.0,0.02403968]
[1733251108275,0.01174001,95625.0,95620.0,0.02403968]
[1733251108526,0.15869799,95658.0,95624.0,0.023]
[1733251108527,0.20912,95639.0,95624.0,0.023]
[1733251108735,0.20912,95639.0,95620.0,0.00203968]
[1733251108736,0.209126,95637.0,95626.0,0.023]
[1733251108964,0.209132,95634.0,95628.0,0.023]
[1733251109211,0.12607684,95640.0,95628.0,0.023]
[1733251109212,0.418238,95639.0,95628.0,0.023]
[1733251109423,0.209141,95630.0,95628.0,0.023]
[1733251110079,0.12607684,95640.0,95620.0,0.00603968]
[1733251110080,0.25215368,95640.0,95620.0,0.00603968]
[1733251110290,0.12607684,95630.0,95620.0,0.00603968]
[1733251110513,0.209155,95623.0,95620.0,0.00503968]
[1733251110747,0.41831,95623.0,95620.0,0.00503968]
[1733251110964,0.41831,95623.0,95620.0,0.00103968]
[1733251111606,0.209155,95623.0,95621.0,0.023]
[1733251112721,0.209155,95623.0,95621.0,0.027]
[1733251113189,0.209155,95623.0,95621.0,0.004]
[1733251114326,0.41831,95623.0,95620.0,0.00103968]
[1733251114541,0.42231,95623.0,95620.0,0.00103968]
[1733251114976,0.41831,95623.0,95620.0,0.00103968]
[1733251115193,0.217155,95623.0,95621.0,0.001]
[1733251115656,0.217155,95623.0,95620.0,0.00103968]
[1733251115657,0.209159,95621.0,95620.0,0.00103968]
[1733251116067,0.22073923,95621.0,95620.0,0.00203968]
[1733251116287,0.22073923,95621.0,95620.0,0.00103968]
[1733251117911,0.22273923,95621.0,95620.0,0.00103968]
[1733251118347,0.22673923,95621.0,95620.0,0.00103968]
[1733251119026,0.22673923,95621.0,95620.0,0.02403968]
[1733251119663,0.01758023,95621.0,95620.0,0.02403968]
[1733251120331,0.006,95621.0,95620.0,0.02403968]
[1733251120542,0.01555655,95621.0,95620.0,0.02403968]
[1733251120777,0.002,95621.0,95620.0,0.02403968]
[1733251121043,0.003,95621.0,95620.0,0.02403968]
[1733251121320,0.01152547,95621.0,95620.0,0.02403968]
[1733251121545,0.01152547,95621.0,95620.0,0.12975227]
[1733251121782,0.13881591,95640.0,95625.0,0.023]
[1733251121997,0.22066332,95639.0,95622.0,0.023]
[1733251122209,0.209137,95632.0,95622.0,0.12771259]
[1733251122448,0.13881591,95632.0,95622.0,0.12771259]
[1733251122712,0.22067984,95631.0,95622.0,0.12771259]
[1733251122908,0.22067984,95631.0,95622.0,0.33686759]
[1733251123781,0.22067984,95631.0,95622.0,0.12771259]
[1733251124264,0.22267984,95631.0,95622.0,0.33686659]
[1733251124499,0.22267984,95631.0,95622.0,0.33786659]
[1733251125167,0.01354284,95631.0,95622.0,0.33786659]
[1733251125388,0.002,95631.0,95622.0,0.12771259]
[1733251125827,0.211137,95631.0,95622.0,0.12771259]
[1733251126060,0.214137,95631.0,95622.0,0.12771259]
[1733251126277,0.01155186,95630.0,95622.0,0.12771259]
[1733251126489,0.209141,95629.0,95622.0,0.12771259]
[1733251126705,0.209152,95625.0,95622.0,0.12771259]
[1733251127354,0.209144,95628.0,95622.0,0.12771259]
[1733251127355,0.01155145,95624.0,95622.0,0.12771259]
[1733251127594,0.209151,95625.0,95623.0,0.023]
[1733251127828,0.209151,95625.0,95624.0,0.023]
[1733251128278,0.209159,95621.0,95620.0,0.02403968]
[1733251130348,0.209159,95621.0,95620.0,0.02503968]
[1733251130565,0.22070962,95621.0,95620.0,0.02503968]
[1733251131630,0.22070962,95621.0,95620.0,0.02703968]
[1733251137107,0.01155062,95621.0,95620.0,0.02703968]
[1733251137329,0.01155062,95621.0,95620.0,0.21245227]
[1733251137544,0.209142,95629.0,95622.0,0.023]
[1733251137761,0.209142,95629.0,95622.0,0.12771259]
[1733251137974,0.01156388,95628.0,95622.0,0.12771259]
[1733251139319,0.01156388,95628.0,95624.0,0.023]
[1733251139844,0.002,95629.0,95628.0,0.023]
[1733251139845,0.003,95629.0,95628.0,0.023]
[1733251140061,0.001,95629.0,95628.0,0.023]
[1733251140272,0.001,95629.0,95628.0,0.0723]
[1733251140720,0.01050148,95629.0,95628.0,0.0723]
[1733251140958,0.002,95629.0,95621.0,0.023]
[1733251141180,0.209153,95624.0,95623.0,0.023]
[1733251141405,0.002,95629.0,95623.0,0.023]
[1733251141626,0.209147,95627.0,95623.0,0.023]
[1733251142104,0.01050238,95626.0,95623.0,0.023]
[1733251142327,0.20915,95625.0,95623.0,0.023]
[1733251142760,0.20915,95625.0,95620.0,0.02403968]
[1733251142761,0.418308,95623.0,95620.0,0.02403968]
[1733251143201,0.209159,95621.0,95620.0,0.02403968]
[1733251143453,0.21966806,95621.0,95620.0,0.02403968]
[1733251144103,0.21966806,95621.0,95620.0,0.02503968]
[1733251144559,0.21966806,95621.0,95620.0,0.02403968]
[1733251144806,0.21966806,95621.0,95620.0,0.02603968]
[1733251145662,0.21966806,95621.0,95620.0,0.02703968]
[1733251151073,0.01050906,95621.0,95620.0,0.02703968]
[1733251151514,0.209156,95623.0,95620.0,0.02703968]
[1733251151741,0.01050005,95621.0,95620.0,0.02703968]
[1733251151959,0.13881591,95640.0,95620.0,0.02703968]
[1733251152184,0.01050005,95621.0,95620.0,0.02703968]
[1733251152640,0.209148,95626.0,95620.0,0.02603968]
[1733251152845,0.01050693,95621.0,95620.0,0.02603968]
[1733251153063,0.209156,95623.0,95620.0,0.02603968]
[1733251153275,0.01050693,95621.0,95620.0,0.02603968]
[1733251153505,0.209148,95626.0,95620.0,0.02403968]
[1733251153775,0.01050715,95621.0,95620.0,0.02403968]
[1733251153970,0.209148,95626.0,95620.0,0.02503968]
[1733251154396,0.01050759,95625.0,95620.0,0.02503968]
[1733251154616,0.21965759,95625.0,95620.0,0.02403968]
[1733251154863,0.209158,95622.0,95620.0,0.02403968]
[1733251155120,0.209158,95622.0,95620.0,0.02603968]
[1733251155326,0.209158,95622.0,95620.0,0.02403968]
[1733251155327,0.01050695,95621.0,95620.0,0.02403968]
[1733251155765,0.01050695,95621.0,95620.0,0.00103968]
[1733251155766,0.08720695,95621.0,95620.0,0.00103968]
[1733251155988,0.41011711,95621.0,95620.0,0.00103968]
[1733251156230,0.82385186,95621.0,95620.0,0.00103968]
[1733251156486,0.8377992,95621.0,95620.0,0.00103968]
[1733251157794,0.8467992,95621.0,95620.0,0.00303968]
[1733251158017,0.6467992,95621.0,95620.0,0.00203968]
[1733251158264,0.8467992,95621.0,95620.0,0.00103968]
[1733251158485,0.8557992,95621.0,95620.0,0.00203968]
[1733251158700,0.6647992,95621.0,95620.0,0.00303968]
[1733251158925,0.8647992,95621.0,95620.0,0.00303968]
[1733251159369,1.09860641,95621.0,95620.0,0.00303968]
[1733251159605,1.09841762,95621.0,95620.0,0.00303968]
[1733251160111,0.8647992,95621.0,95620.0,0.00303968]
[1733251160362,0.8689882,95621.0,95620.0,0.00303968]
[1733251160582,1.05584178,95621.0,95620.0,0.00303968]
[1733251160802,1.05584997,95621.0,95620.0,0.00303968]
[1733251161754,0.8689882,95621.0,95620.0,0.00303968]
[1733251162893,0.8689882,95621.0,95580.0,0.2109732]
[1733251162894,0.2,95605.0,95580.0,0.0017252]
[1733251163113,0.209233,95587.0,95586.0,0.00231294]
[1733251163577,0.21979641,95587.0,95586.0,0.00231294]
[1733251164054,0.21979641,95587.0,95586.0,0.00331294]
[1733251164272,0.21979641,95587.0,95586.0,0.00231294]
[1733251164703,0.22679641,95587.0,95586.0,0.00331294]
[1733251164933,0.22979641,95587.0,95586.0,0.00331294]
[1733251166089,0.25670235,95587.0,95586.0,0.00331294]
[1733251169617,0.51141494,95587.0,95586.0,0.00331294]
[1733251170485,0.71141494,95587.0,95586.0,0.00331294]
[1733251190534,0.94194429,95587.0,95586.0,0.00331294]
[1733251191389,0.93494429,95587.0,95586.0,0.00231294]
[1733251191845,0.70441494,95587.0,95586.0,0.00231294]
[1733251192073,0.71341494,95587.0,95586.0,0.00231294]
[1733251192312,0.70141494,95587.0,95586.0,0.00231294]
[1733251192741,0.70741494,95587.0,95586.0,0.00231294]
[1733251193201,0.70141494,95587.0,95586.0,0.00231294]
[1733251193420,0.70841494,95587.0,95586.0,0.00231294]
[1733251193631,0.71741494,95587.0,95586.0,0.00231294]
[1733251195551,0.74798442,95587.0,95586.0,0.00231294]
[1733251196807,0.41636589,95587.0,95586.0,0.02531294]
[1733251197022,0.41349701,95587.0,95586.0,0.02531294]
[1733251197247,0.38292753,95587.0,95586.0,0.02531294]
[1733251197460,0.4135314,95587.0,95586.0,0.02531294]
[1733251197883,0.2545314,95587.0,95586.0,0.02531294]
[1733251198111,0.2545314,95587.0,95586.0,0.10051294]
[1733251198328,0.2635314,95587.0,95586.0,0.10051294]
[1733251198575,0.2565314,95587.0,95586.0,0.10051294]
[1733251198802,0.2615314,95587.0,95586.0,0.10051294]
[1733251199440,0.2565314,95587.0,95586.0,0.10051294]
[1733251199664,0.2605314,95587.0,95586.0,0.10051294]
[1733251199889,0.2515314,95587.0,95586.0,0.10051294]
[1733251200359,0.2585314,95587.0,95586.0,0.10051294]
[1733251203943,0.36324399,95587.0,95586.0,0.02531294]
[1733251204162,0.36324399,95587.0,95586.0,0.00231294]
[1733251204163,0.51324399,95587.0,95586.0,0.00231294]
[1733251204379,0.91324399,95587.0,95586.0,0.00231294]
[1733251204819,0.71324399,95587.0,95586.0,0.00231294]
[1733251205763,0.85341721,95587.0,95586.0,0.00231294]
[1733251209157,0.71324399,95587.0,95586.0,0.00231294]
[1733251211597,0.99414108,95587.0,95586.0,0.00231294]
[1733251211822,0.71324399,95587.0,95586.0,0.00231294]
[1733251214734,0.98864399,95587.0,95586.0,9.4e-07]
[1733251214953,1.30403375,95587.0,95586.0,9.4e-07]
[1733251215195,1.30403375,95587.0,95579.0,7.4e-07]
[1733251215196,0.4,95580.0,95579.0,7.4e-07]
[1733251215411,0.69220844,95580.0,95579.0,0.00017682]
[1733251216778,0.54220844,95580.0,95579.0,0.00017682]
[1733251217012,0.69220844,95580.0,95579.0,0.00017682]
[1733251217684,0.70120844,95580.0,95579.0,0.00017682]
[1733251217916,0.71020844,95580.0,95579.0,0.00017682]
[1733251219290,0.99100136,95580.0,95579.0,0.00017682]
[1733251220169,0.84100136,95580.0,95579.0,0.00017682]
[1733251220452,1.01834572,95580.0,95579.0,0.00017682]
[1733251221112,0.81834572,95580.0,95579.0,0.00017682]
[1733251221369,0.5375528,95580.0,95579.0,0.00017682]
[1733251223393,0.5375528,95580.0,95579.0,0.08277682]
[1733251223841,0.3375528,95580.0,95579.0,0.08277682]
[1733251224293,0.53928,95580.0,95579.0,0.08277682]
[1733251225218,0.33928,95580.0,95579.0,0.08277682]
[1733251225449,0.16193564,95580.0,95579.0,0.10577682]
[1733251225673,0.02661918,95580.0,95579.0,0.15537682]
[1733251226352,0.01761918,95580.0,95579.0,0.15537682]
[1733251226576,0.0107272,95580.0,95579.0,0.15537682]
[1733251226864,0.0167272,95580.0,95579.0,0.15537682]
[1733251227089,0.0107272,95580.0,95579.0,0.15537682]
[1733251227325,0.18722598,95599.0,95579.0,0.15537682]
[1733251227326,0.209215,95595.0,95582.0,0.023]
[1733251227543,0.209215,95595.0,95588.0,0.023]
[1733251227765,0.00572498,95594.0,95590.0,0.023]
[1733251227984,0.00572498,95594.0,95593.0,0.0827]
[1733251228210,0.00572498,95594.0,95593.0,0.1057]
[1733251229113,0.00672498,95594.0,95593.0,0.0827]
[1733251229571,0.00572498,95594.0,95593.0,0.0827]
[1733251230028,0.00672498,95594.0,95593.0,0.0827]
[1733251231901,0.01227036,95594.0,95593.0,0.0827]
[1733251232118,0.03879706,95594.0,95593.0,0.0827]
[1733251232333,0.01227036,95594.0,95593.0,0.0827]
[1733251236590,0.01399756,95594.0,95593.0,0.0827]
[1733251247736,0.00351278,95594.0,95593.0,0.0827]
[1733251247947,0.01143234,95594.0,95593.0,0.0827]
[1733251259967,0.11614493,95594.0,95585.0,0.0819]
[1733251260182,0.209246,95581.0,95580.0,0.0008636]
[1733251260408,0.66395859,95581.0,95580.0,0.0008636]
[1733251260621,0.70426167,95581.0,95580.0,0.0008636]
[1733251262856,0.72226167,95581.0,95580.0,0.0018636]
[1733251263291,0.71326167,95581.0,95580.0,0.0008636]
[1733251263531,0.71326167,95581.0,95580.0,0.0018636]
[1733251263780,0.74054572,95581.0,95580.0,0.0018636]
[1733251264001,0.74954572,95581.0,95580.0,0.0018636]
[1733251264908,0.74954572,95581.0,95574.0,4.2e-07]
[1733251264909,0.759259,95575.0,95574.0,4.2e-07]
[1733251265359,0.9050896,95575.0,95574.0,1.4e-07]
[1733251265798,0.92605201,95575.0,95574.0,1.4e-07]
[1733251266031,0.93405201,95575.0,95574.0,1.4e-07]
[1733251266494,1.1168712,95575.0,95574.0,1.4e-07]
[1733251266730,0.759272,95569.0,95552.0,0.64230288]
[1733251266978,0.86398459,95569.0,95568.0,0.00190063]
[1733251267205,0.8724933,95569.0,95568.0,0.00190063]
[1733251267693,0.90224352,95569.0,95568.0,0.00190063]
[1733251268177,0.70670617,95569.0,95568.0,0.00190063]
[1733251268400,0.90670617,95569.0,95568.0,0.00190063]
[1733251269355,0.70670617,95569.0,95568.0,0.00190063]
[1733251269579,0.71370617,95569.0,95568.0,0.00190063]
[1733251269812,0.51370617,95569.0,95568.0,0.00190063]
[1733251273455,0.33679218,95569.0,95568.0,0.08200063]
[1733251274868,0.32779218,95569.0,95568.0,0.08200063]
[1733251275379,0.33679218,95569.0,95568.0,0.08200063]
[1733251275622,0.32979218,95569.0,95568.0,0.08200063]
[1733251275860,0.33679218,95569.0,95568.0,0.08200063]
[1733251276102,0.23207959,95569.0,95568.0,0.08200063]
[1733251276353,0.22507959,95569.0,95568.0,0.08200063]
[1733251276601,0.22907959,95569.0,95568.0,0.08200063]
[1733251276844,0.22007959,95569.0,95568.0,0.08200063]
[1733251277065,0.22507959,95569.0,95568.0,0.08200063]
[1733251277297,0.21607959,95569.0,95568.0,0.08200063]
[1733251277740,0.22407959,95569.0,95568.0,0.08200063]
[1733251278328,0.21868618,95569.0,95568.0,0.08200063]
[1733251278567,0.22368618,95569.0,95568.0,0.08200063]
[1733251279024,0.21868618,95569.0,95568.0,0.08200063]
[1733251279266,0.22168618,95569.0,95568.0,0.08200063]
[1733251279765,0.32639877,95569.0,95568.0,0.00190063]
[1733251280970,0.32639877,95569.0,95568.0,0.07730063]
[1733251282597,0.22168618,95569.0,95568.0,0.07730063]
[1733251283518,0.22341218,95569.0,95568.0,0.07730063]
[1733251283745,0.01953359,95569.0,95568.0,0.07730063]
[1733251284463,0.01953359,95569.0,95568.0,0.14660063]
[1733251284693,0.012726,95569.0,95568.0,0.14660063]
[1733251285862,0.0183997,95569.0,95568.0,0.14660063]
[1733251286112,0.009726,95569.0,95568.0,0.14660063]
[1733251286366,0.003726,95569.0,95568.0,0.14660063]
[1733251286609,0.00939964,95569.0,95568.0,0.14660063]
[1733251286857,0.010726,95569.0,95568.0,0.14660063]
[1733251287107,0.00942044,95569.0,95568.0,0.14660063]
[1733251287298,0.00742044,95569.0,95568.0,0.14660063]
[1733251289236,0.00742044,95569.0,95568.0,0.12360063]
[1733251298395,0.00742044,95569.0,95568.0,0.14660063]
[1733251299627,0.00742827,95569.0,95568.0,0.14660063]
[1733251301773,0.00742827,95569.0,95568.0,0.17399679]
[1733251302225,0.001726,95569.0,95568.0,0.17399679]
[1733251303124,0.001726,95569.0,95568.0,0.14660063]
[1733251303862,0.00742827,95569.0,95568.0,0.14660063]
[1733251304114,0.001726,95569.0,95568.0,0.14660063]
[1733251304583,0.00742827,95569.0,95568.0,0.14660063]
[1733251304813,0.001726,95569.0,95568.0,0.14660063]
[1733251305040,0.00742827,95569.0,95568.0,0.14660063]
[1733251305273,0.001726,95569.0,95568.0,0.14660063]
[1733251305524,0.00730577,95569.0,95568.0,0.14660063]
[1733251305730,0.001726,95569.0,95568.0,0.14660063]
[1733251306259,0.00730583,95569.0,95568.0,0.14660063]
[1733251306474,0.001726,95569.0,95568.0,0.14660063]
[1733251306692,0.00726647,95569.0,95568.0,0.14660063]
[1733251306946,0.001726,95569.0,95568.0,0.14660063]
[1733251307181,0.0072664,95569.0,95568.0,0.14660063]
[1733251307436,0.00727118,95569.0,95568.0,0.14660063]
[1733251307657,0.001726,95569.0,95568.0,0.14660063]
[1733251309833,0.00728225,95569.0,95568.0,0.14660063]
[1733251310057,0.001726,95569.0,95568.0,0.14660063]
[1733251310287,0.00728225,95569.0,95568.0,0.14660063]
[1733251310517,0.001726,95569.0,95568.0,0.14660063]
[1733251310739,0.00728225,95569.0,95568.0,0.14660063]
[1733251310955,0.001726,95569.0,95568.0,0.14660063]
[1733251311430,0.00728225,95569.0,95568.0,0.14660063]
[1733251311646,0.001726,95569.0,95568.0,0.14660063]
[1733251311867,0.00728225,95569.0,95568.0,0.14660063]
[1733251312089,0.001726,95569.0,95568.0,0.14660063]
[1733251312309,0.00728225,95569.0,95568.0,0.14660063]
[1733251312529,0.001726,95569.0,95568.0,0.14660063]
[1733251312745,0.001726,95569.0,95568.0,0.00190063]
[1733251312963,0.00728071,95569.0,95568.0,0.00190063]
[1733251316920,0.01282282,95569.0,95568.0,0.00190063]
[1733251317137,0.001726,95569.0,95568.0,0.00190063]
[1733251317582,0.01282493,95569.0,95568.0,0.00190063]
[1733251317793,0.001726,95569.0,95568.0,0.00190063]
[1733251318005,0.01282493,95569.0,95568.0,0.00190063]
[1733251318227,0.001726,95569.0,95568.0,0.00190063]
[1733251318441,0.01282426,95569.0,95568.0,0.00190063]
[1733251318658,0.001726,95569.0,95568.0,0.07710063]
[1733251318971,0.01282458,95569.0,95568.0,0.07710063]
[1733251319188,0.001726,95569.0,95568.0,0.07710063]
[1733251319399,0.01282559,95569.0,95568.0,0.14630063]
[1733251319615,0.001726,95569.0,95568.0,0.25286511]
[1733251319830,0.001726,95569.0,95568.0,0.25101322]
[1733251321142,0.001726,95569.0,95568.0,0.14630063]
[1733251321695,0.01297438,95569.0,95568.0,0.14630063]
[1733251322101,0.001726,95569.0,95568.0,0.14630063]
[1733251322779,0.01297465,95569.0,95568.0,0.00190063]
[1733251322962,0.001726,95569.0,95568.0,0.00190063]
[1733251323171,0.01297015,95569.0,95568.0,0.00190063]
[1733251323371,0.001726,95569.0,95568.0,0.00190063]
[1733251323575,0.01297027,95569.0,95568.0,0.00190063]
[1733251323775,0.001726,95569.0,95568.0,0.00190063]
[1733251323998,0.001726,95569.0,95568.0,0.00290063]
[1733251324444,0.01297014,95569.0,95568.0,0.00290063]
[1733251324591,0.002726,95569.0,95568.0,0.00190063]
[1733251324780,0.01397014,95569.0,95568.0,0.00190063]
[1733251324990,0.001726,95569.0,95568.0,0.00190063]
[1733251325194,0.01497001,95569.0,95568.0,0.00190063]
[1733251325392,0.003726,95569.0,95568.0,0.00190063]
[1733251325726,0.01497027,95569.0,95568.0,0.00190063]
[1733251325922,0.003726,95569.0,95568.0,0.00190063]
[1733251326076,0.01497027,95569.0,95568.0,0.00190063]
[1733251326276,0.003726,95569.0,95568.0,0.00190063]
[1733251326496,0.01497014,95569.0,95568.0,0.00190063]
[1733251326699,0.003726,95569.0,95568.0,0.00190063]
[1733251327115,0.01497001,95569.0,95568.0,0.00190063]
[1733251328412,0.1176826,95569.0,95568.0,0.00190063]
[1733251328643,0.2676826,95569.0,95568.0,0.00190063]
[1733251328861,0.2736826,95569.0,95568.0,0.00190063]
[1733251329146,0.29817299,95569.0,95568.0,0.00190063]
[1733251329573,0.2676826,95569.0,95568.0,0.00190063]
[1733251329795,0.40758252,95569.0,95568.0,0.00190063]
[1733251330250,0.2696826,95569.0,95568.0,0.00190063]
[1733251330484,0.2786826,95569.0,95568.0,0.00190063]
[1733251330713,0.2676826,95569.0,95568.0,0.00190063]
[1733251331179,0.30376682,95569.0,95568.0,0.00190063]
[1733251331418,0.39697603,95569.0,95568.0,0.00190063]
[1733251331643,0.40097603,95569.0,95568.0,0.00190063]
[1733251332576,0.30776682,95569.0,95568.0,0.00190063]
[1733251334602,0.15776682,95569.0,95568.0,0.00190063]
[1733251335574,0.2,95565.0,95561.0,0.0008631]
[1733251335835,0.35,95553.0,95544.0,0.2]
[1733251336085,0.94511959,95553.0,95552.0,0.62137188]
[1733251336320,1.03188524,95553.0,95552.0,0.62137188]
[1733251336563,1.03188524,95553.0,95552.0,0.55857888]
[1733251336789,1.00146754,95553.0,95552.0,0.45392388]
[1733251337014,1.1874557,95553.0,95552.0,0.45392388]
[1733251337236,1.00146754,95553.0,95552.0,0.45392388]
[1733251337458,1.167456,95553.0,95552.0,0.45392388]
[1733251337688,1.17445601,95553.0,95552.0,0.45392388]
[1733251337929,1.22991512,95553.0,95552.0,0.45392388]
[1733251338153,1.04405655,95553.0,95552.0,0.45392388]
[1733251338374,1.22990649,95553.0,95552.0,0.45392388]
[1733251338597,1.04405655,95553.0,95552.0,0.45392388]
[1733251340532,1.04405655,95553.0,95552.0,0.45478668]
[1733251341206,1.04405655,95553.0,95552.0,0.35013168]
[1733251342577,1.04405655,95553.0,95552.0,0.16415717]
[1733251343049,1.04405655,95553.0,95552.0,0.12229517]
[1733251343296,1.04405655,95553.0,95552.0,0.05331534]
[1733251345311,1.04405655,95553.0,95552.0,0.01601]
[1733251345539,1.04405655,95553.0,95552.0,0.0050049]
[1733251348424,0.99905655,95553.0,95552.0,0.0050049]
[1733251349071,0.99573388,95553.0,95552.0,0.0050049]
[1733251349787,0.51463388,95553.0,95552.0,0.0050049]
[1733251350003,0.91463388,95553.0,95552.0,0.0050049]
[1733251350637,0.71463388,95553.0,95552.0,0.0050049]
[1733251350853,0.91463388,95553.0,95552.0,0.0050049]
[1733251355920,0.91463388,95553.0,95544.0,0.2]
[1733251355921,0.55,95545.0,95544.0,0.03799403]
[1733251356136,0.55,95545.0,95534.0,0.08980834]
[1733251356137,0.35,95535.0,95534.0,0.08980834]
[1733251356356,0.66405959,95535.0,95534.0,0.08980834]
[1733251356568,0.671991,95535.0,95534.0,0.08980834]
[1733251357528,0.680991,95535.0,95534.0,0.08980834]
[1733251357736,0.68116287,95535.0,95534.0,0.08980834]
[1733251358816,0.68816287,95535.0,95534.0,0.08980834]
[1733251359695,0.71534668,95535.0,95534.0,0.08980834]
[1733251361082,0.51534668,95535.0,95534.0,0.08980834]
[1733251361528,0.51534668,95535.0,95534.0,0.16620834]
[1733251362017,0.41063409,95535.0,95534.0,0.21370834]
[1733251362275,0.26063409,95535.0,95534.0,0.21370834]
[1733251363451,0.25363409,95535.0,95534.0,0.21370834]
[1733251363711,0.01710328,95535.0,95534.0,0.21370834]
[1733251363955,0.00810328,95535.0,95534.0,0.21370834]
[1733251364223,0.12081587,95535.0,95534.0,0.08980834]
[1733251364466,0.11281587,95535.0,95534.0,0.08980834]
[1733251364996,0.11881587,95535.0,95534.0,0.08980834]
[1733251365476,0.11281587,95535.0,95534.0,0.09067134]
[1733251365720,0.11681587,95535.0,95534.0,0.09067134]
[1733251366173,0.11981587,95535.0,95534.0,0.09067134]
[1733251366395,0.11281587,95535.0,95534.0,0.09067134]
[1733251366615,0.11881587,95535.0,95534.0,0.09067134]
[1733251366840,0.12781587,95535.0,95534.0,0.09067134]
[1733251368003,0.12781587,95535.0,95534.0,0.000863]
[1733251372736,0.15828292,95535.0,95534.0,0.000863]
[1733251373205,0.35828292,95535.0,95534.0,0.000863]
[1733251373452,0.50828292,95535.0,95534.0,0.000863]
[1733251374509,0.49328292,95535.0,95534.0,0.000863]
[1733251374731,0.49928292,95535.0,95534.0,0.000863]
[1733251374992,0.50828292,95535.0,95534.0,0.000863]
[1733251375212,0.50228292,95535.0,95534.0,0.000863]
[1733251375441,0.51128292,95535.0,95534.0,0.000863]
[1733251375661,0.50028292,95535.0,95534.0,0.000863]
[1733251376141,0.49328292,95535.0,95534.0,0.000863]
[1733251377037,0.50228292,95535.0,95534.0,0.000863]
[1733251377260,0.50828292,95535.0,95534.0,0.000863]
[1733251377971,0.51000912,95535.0,95534.0,0.000863]
[1733251379507,0.64940067,95535.0,95534.0,0.000863]
[1733251380671,0.209369,95525.0,95524.0,0.10400487]
[1733251380920,0.31408159,95525.0,95524.0,0.10400487]
[1733251381174,0.32055154,95525.0,95524.0,0.10400487]
[1733251381667,0.41369781,95525.0,95524.0,0.10400487]
[1733251381904,0.32055154,95525.0,95524.0,0.10400487]
[1733251382164,0.46916197,95525.0,95524.0,0.10400487]
[1733251382400,0.95865154,95525.0,95524.0,0.04119387]
[1733251382631,1.01649413,95525.0,95524.0,0.04119387]
[1733251382881,0.93739413,95525.0,95524.0,0.04119387]
[1733251383365,0.93239413,95525.0,95524.0,0.04119387]
[1733251383600,0.910956,95525.0,95524.0,0.04119387]
[1733251383827,1.1700711,95525.0,95524.0,0.04119387]
[1733251384308,1.1780711,95525.0,95524.0,0.04119387]
[1733251384750,0.94538705,95525.0,95524.0,0.04119387]
[1733251386586,0.94538705,95525.0,95514.0,0.13650087]
[1733251386587,0.759391,95515.0,95514.0,0.13650087]
[1733251386796,0.759391,95515.0,95514.0,0.11556187]
[1733251386797,1.0381577,95515.0,95514.0,0.11556187]
[1733251387025,0.95166951,95515.0,95514.0,0.11556187]
[1733251387684,0.95766951,95515.0,95514.0,0.11556187]
[1733251388113,1.21476727,95515.0,95514.0,0.11556187]
[1733251388327,0.98208322,95515.0,95514.0,0.11556187]
[1733251388539,0.96666951,95515.0,95514.0,0.11556187]
[1733251388748,1.15264562,95515.0,95514.0,0.11556187]
[1733251389400,1.09926094,95515.0,95514.0,0.11556187]
[1733251389624,0.91328954,95515.0,95514.0,0.11556187]
[1733251389851,0.91328954,95515.0,95514.0,0.11642507]
[1733251391556,1.05265735,95515.0,95514.0,0.11642507]
[1733251392306,0.91328954,95515.0,95514.0,0.11642507]
[1733251392546,1.05262044,95515.0,95514.0,0.11642507]
[1733251392770,1.05261984,95515.0,95514.0,0.11642507]
[1733251393011,1.05261984,95515.0,95514.0,0.01173007]
[1733251393012,0.91328954,95515.0,95514.0,0.01173007]
[1733251393466,1.05259833,95515.0,95514.0,0.01173007]
[1733251394212,0.91328954,95515.0,95514.0,0.01173007]
[1733251394438,1.05259833,95515.0,95514.0,0.01173007]
[1733251394668,0.91328954,95515.0,95514.0,0.01173007]
[1733251396763,0.90428954,95515.0,95514.0,0.01173007]
[1733251396980,0.89828954,95515.0,95514.0,0.01173007]
[1733251397671,0.91528954,95515.0,95514.0,0.01173007]
[1733251398155,0.90728954,95515.0,95514.0,0.01173007]
[1733251398385,0.91528954,95515.0,95514.0,0.01173007]
[1733251400495,0.91528954,95515.0,95514.0,7e-08]
[1733251400727,0.359413,95505.0,95504.0,0.2]
[1733251400961,0.46412559,95505.0,95504.0,0.2]
[1733251401190,0.47063616,95505.0,95504.0,0.2]
[1733251401873,0.47563616,95505.0,95504.0,0.2]
[1733251402781,0.48463616,95505.0,95504.0,0.2]
[1733251403457,0.51153186,95505.0,95504.0,0.2]
[1733251412446,0.51153186,95505.0,95504.0,0.200863]
[1733251412703,0.54196713,95505.0,95504.0,0.200863]
[1733251412951,0.54196713,95505.0,95504.0,0.276563]
[1733251413168,0.25681927,95505.0,95504.0,0.322563]
[1733251413868,0.22992357,95505.0,95504.0,0.322563]
[1733251415023,0.22042098,95505.0,95504.0,0.322563]
[1733251415524,0.22642098,95505.0,95504.0,0.322563]
[1733251415748,0.22142098,95505.0,95504.0,0.322563]
[1733251416187,0.22342098,95505.0,95504.0,0.322563]
[1733251416619,0.22142098,95505.0,95504.0,0.322563]
[1733251417058,0.22342098,95505.0,95504.0,0.322563]
[1733251421734,0.01451057,95505.0,95504.0,0.322563]
[1733251422440,0.008,95505.0,95504.0,0.322563]
[1733251422903,0.001726,95515.0,95505.0,0.339013]
[1733251423130,0.00190191,95515.0,95506.0,0.1296]
[1733251423360,0.418786,95514.0,95508.0,0.0784]
[1733251423582,0.209393,95514.0,95511.0,0.0481]
[1733251423823,0.209393,95514.0,95512.0,0.0784]
[1733251424278,0.001726,95514.0,95513.0,0.0483]
[1733251424525,0.001726,95514.0,95513.0,0.1283]
[1733251425711,0.005726,95514.0,95513.0,0.1283]
[1733251426177,0.0913497,95540.0,95513.0,0.1283]
[1733251426178,0.09302781,95543.0,95515.0,0.1215]
[1733251426404,0.18437751,95550.0,95529.0,0.1215]
[1733251426618,0.0269371,95551.0,95534.0,0.1271]
[1733251426835,0.20932,95548.0,95534.0,0.12895238]
[1733251427797,0.20933,95543.0,95534.0,0.1271]
[1733251428466,0.20933,95543.0,95534.0,0.1281]
[1733251428923,0.20933,95543.0,95534.0,0.1301]
[1733251429367,0.209328,95544.0,95534.0,0.1301]
[1733251430497,0.209336,95541.0,95534.0,0.1301]
[1733251430739,0.209328,95544.0,95534.0,0.1301]
[1733251430987,0.209328,95544.0,95534.0,0.339449]
[1733251431196,0.001726,95553.0,95534.0,0.44416159]
[1733251431454,0.001726,95553.0,95550.0,0.1288]
[1733251431704,0.001726,95553.0,95552.0,0.0464]
[1733251431961,0.001726,95553.0,95552.0,0.12485212]